[Event "Titled Tuesday Blitz March 29 Late 2022"]
[White "Needleman, Alejandro"]
[Black "Rangel, Daniel"]
[WhiteFideId "100730"]
[BlackFideId "2124475"]
[WhiteElo "2247"]
[BlackElo "2225"]
[Result "1-0"]
[Round "06"]
[TimeControl "180+1"]
[Date "2022.03.30"]
[WhiteClock "0:00:16"]
[BlackClock "0:00:01"]

1. e4 {[%clk 0:03:00]}  c5 {[%clk 0:02:56]} 2. Nf3 {[%clk 0:03:00]}  g6 {[%clk 0:02:56]} 3. d4 {[%clk 0:02:59]}  cxd4 {[%clk 0:02:57]} 4. Nxd4 {[%clk 0:02:59]}  Bg7 {[%clk 0:02:57]} 5. Nc3 {[%clk 0:03:00]}  Nc6 {[%clk 0:02:57]} 6. Nf3 {[%clk 0:03:00]}  d6 {[%clk 0:02:55]} 7. Bc4 {[%clk 0:03:01]}  Nf6 {[%clk 0:02:52]} 8. h3 {[%clk 0:03:01]}  O-O {[%clk 0:02:51]} 9. O-O {[%clk 0:03:01]}  a6 {[%clk 0:02:49]} 10. Re1 {[%clk 0:03:01]}  b5 {[%clk 0:02:46]} 11. Bb3 {[%clk 0:03:02]}  Bb7 {[%clk 0:02:45]} 12. Nd5 {[%clk 0:03:02]}  Na5 {[%clk 0:02:39]} 13. c3 {[%clk 0:03:02]}  Nxb3 {[%clk 0:02:29]} 14. axb3 {[%clk 0:03:03]}  e6 {[%clk 0:02:20]} 15. Nxf6+ {[%clk 0:03:01]}  Bxf6 {[%clk 0:02:21]} 16. Bh6 {[%clk 0:02:58]}  Re8 {[%clk 0:02:19]} 17. Qd2 {[%clk 0:02:59]}  Qc7 {[%clk 0:02:17]} 18. Rad1 {[%clk 0:02:57]}  Rad8 {[%clk 0:02:15]} 19. Qf4 {[%clk 0:02:57]}  Bh8 {[%clk 0:02:08]} 20. Nh2 {[%clk 0:02:41]}  Be5 {[%clk 0:02:05]} 21. Qh4 {[%clk 0:02:32]}  f5 {[%clk 0:01:59]} 22. exf5 {[%clk 0:02:20]}  gxf5 {[%clk 0:02:00]} 23. Qg5+ {[%clk 0:01:46]}  Bg7 {[%clk 0:01:44]} 24. Rd3 {[%clk 0:01:25]}  Kh8 {[%clk 0:01:35]} 25. Rxe6 {[%clk 0:01:14]}  Rxe6 {[%clk 0:00:55]} 26. Bxg7+ {[%clk 0:01:14]}  Kg8 {[%clk 0:00:56]} 27. Bf6+ {[%clk 0:01:12]}  Kf8 {[%clk 0:00:55]} 28. Bxd8 {[%clk 0:00:51]}  Qc6 {[%clk 0:00:39]} 29. Rg3 {[%clk 0:00:41]}  Ke8 {[%clk 0:00:07]} 30. Qg8+ {[%clk 0:00:31]}  Kd7 {[%clk 0:00:07]} 31. Rg7+ {[%clk 0:00:32]}  Kc8 {[%clk 0:00:06]} 32. Rc7+ {[%clk 0:00:25]}  Qxc7 {[%clk 0:00:03]} 33. Bxc7+ {[%clk 0:00:25]}  Kd7 {[%clk 0:00:03]} 34. Qf7+ {[%clk 0:00:23]}  Re7 {[%clk 0:00:02]} 35. Qxf5+ {[%clk 0:00:22]}  Kxc7 {[%clk 0:00:02]} 36. Nf3 {[%clk 0:00:20]}  Rd7 {[%clk 0:00:02]} 37. Nd4 {[%clk 0:00:18]}  Bc6 {[%clk 0:00:03]} 38. f3 {[%clk 0:00:18]}  Bb7 {[%clk 0:00:03]} 39. Kf2 {[%clk 0:00:18]}  Re7 {[%clk 0:00:03]} 40. g4 {[%clk 0:00:18]}  Rd7 {[%clk 0:00:03]} 41. h4 {[%clk 0:00:18]}  Re7 {[%clk 0:00:03]} 42. g5 {[%clk 0:00:19]}  Re5 {[%clk 0:00:04]} 43. Qxh7+ {[%clk 0:00:17]}  Kb6 {[%clk 0:00:04]} 44. Qd3 {[%clk 0:00:17]}  a5 {[%clk 0:00:01]} 45. g6 {[%clk 0:00:17]}  b4 {[%clk 0:00:01]} 46. cxb4 {[%clk 0:00:16]}  Re8 {[%clk 0:00:02]} 47. g7 {[%clk 0:00:16]}  Kc7 {[%clk 0:00:01]} 48. Qc4+ {[%clk 0:00:16]} 1-0


[Site "https://www.chess.com"]

[Event "Titled Tuesday Blitz March 29 Late 2022"]
[White "Papasimakopoulos, Alexandros"]
[Black "Holt, Conrad"]
[WhiteFideId "4244125"]
[BlackFideId "2034387"]
[WhiteElo "2340"]
[BlackElo "2586"]
[Result "0-1"]
[Round "06"]
[TimeControl "180+1"]
[Date "2022.03.29"]
[WhiteClock "0:00:27"]
[BlackClock "0:00:06"]

1. d4 {[%clk 0:03:00]}  d5 {[%clk 0:02:59]} 2. c4 {[%clk 0:03:01]}  c6 {[%clk 0:02:59]} 3. cxd5 {[%clk 0:03:01]}  cxd5 {[%clk 0:03:00]} 4. Bf4 {[%clk 0:03:02]}  Nc6 {[%clk 0:02:59]} 5. e3 {[%clk 0:03:02]}  e6 {[%clk 0:02:57]} 6. Nc3 {[%clk 0:03:02]}  Bd6 {[%clk 0:02:56]} 7. Bxd6 {[%clk 0:03:02]}  Qxd6 {[%clk 0:02:57]} 8. Bd3 {[%clk 0:03:03]}  Nf6 {[%clk 0:02:55]} 9. f4 {[%clk 0:03:03]}  O-O {[%clk 0:02:49]} 10. Nf3 {[%clk 0:03:04]}  Bd7 {[%clk 0:02:50]} 11. O-O {[%clk 0:03:04]}  Rfc8 {[%clk 0:02:46]} 12. Ne5 {[%clk 0:03:04]}  Ne7 {[%clk 0:02:44]} 13. g4 {[%clk 0:03:01]}  Be8 {[%clk 0:02:40]} 14. g5 {[%clk 0:03:01]}  Nd7 {[%clk 0:02:40]} 15. Rf3 {[%clk 0:02:55]}  Nf5 {[%clk 0:02:25]} 16. Rh3 {[%clk 0:02:48]}  Nf8 {[%clk 0:02:09]} 17. Qf3 {[%clk 0:02:36]}  Qb4 {[%clk 0:01:49]} 18. Bxf5 {[%clk 0:02:24]}  Qxb2 {[%clk 0:01:46]} 19. Rb1 {[%clk 0:02:11]}  Qxc3 {[%clk 0:01:42]} 20. Bxh7+ {[%clk 0:02:11]}  Nxh7 {[%clk 0:01:42]} 21. Qh5 {[%clk 0:02:11]}  Qc2 {[%clk 0:01:22]} 22. Rf1 {[%clk 0:02:01]}  Qf5 {[%clk 0:01:19]} 23. Qh4 {[%clk 0:01:56]}  f6 {[%clk 0:00:44]} 24. gxf6 {[%clk 0:01:57]}  Rc7 {[%clk 0:00:38]} 25. Ng4 {[%clk 0:01:32]}  Rac8 {[%clk 0:00:28]} 26. Rg3 {[%clk 0:01:32]}  Kh8 {[%clk 0:00:12]} 27. e4 {[%clk 0:01:03]}  dxe4 {[%clk 0:00:11]} 28. Rh3 {[%clk 0:01:03]}  gxf6 {[%clk 0:00:10]} 29. Nh6 {[%clk 0:01:00]}  Rg7+ {[%clk 0:00:10]} 30. Kh1 {[%clk 0:00:59]}  Qd5 {[%clk 0:00:07]} 31. Re3 {[%clk 0:00:55]}  Bb5 {[%clk 0:00:06]} 32. Rd1 {[%clk 0:00:50]}  Rf8 {[%clk 0:00:06]} 33. h3 {[%clk 0:00:46]}  Bc6 {[%clk 0:00:06]} 34. Kh2 {[%clk 0:00:46]}  f5 {[%clk 0:00:06]} 35. Rg3 {[%clk 0:00:38]}  Qd8 {[%clk 0:00:06]} 36. Qh5 {[%clk 0:00:30]}  Be8 {[%clk 0:00:06]} 37. Qe2 {[%clk 0:00:26]}  Rxg3 {[%clk 0:00:06]} 38. Kxg3 {[%clk 0:00:27]}  Qf6 {[%clk 0:00:06]} 39. Ng4 {[%clk 0:00:26]}  fxg4 {[%clk 0:00:06]} 40. Qxe4 {[%clk 0:00:27]}  gxh3 {[%clk 0:00:06]} 0-1


[Site "https://www.chess.com"]

[Event "Titled Tuesday Blitz March 29 Late 2022"]
[White "Piliczewski, Bogusz"]
[Black "Kozina, Anastasia"]
[WhiteFideId "1104144"]
[BlackFideId "24174017"]
[WhiteElo "1896"]
[BlackElo "1993"]
[Result "0-1"]
[Round "06"]
[TimeControl "180+1"]
[Date "2022.03.30"]
[WhiteClock "0:00:02"]
[BlackClock "0:00:27"]

1. d4 {[%clk 0:02:58]}  e6 {[%clk 0:02:58]} 2. Nf3 {[%clk 0:02:58]}  Nf6 {[%clk 0:02:58]} 3. Bf4 {[%clk 0:02:59]}  b6 {[%clk 0:02:56]} 4. e3 {[%clk 0:02:59]}  Bb7 {[%clk 0:02:57]} 5. Be2 {[%clk 0:02:59]}  Be7 {[%clk 0:02:57]} 6. O-O {[%clk 0:02:59]}  O-O {[%clk 0:02:58]} 7. h3 {[%clk 0:03:00]}  c5 {[%clk 0:02:57]} 8. c3 {[%clk 0:03:00]}  Nc6 {[%clk 0:02:57]} 9. Nbd2 {[%clk 0:03:00]}  d5 {[%clk 0:02:57]} 10. Bh2 {[%clk 0:02:59]}  Qc8 {[%clk 0:02:55]} 11. Ne5 {[%clk 0:02:59]}  Nxe5 {[%clk 0:02:52]} 12. dxe5 {[%clk 0:02:59]}  Nd7 {[%clk 0:02:51]} 13. f4 {[%clk 0:02:59]}  Ba6 {[%clk 0:02:48]} 14. c4 {[%clk 0:02:51]}  Rd8 {[%clk 0:02:38]} 15. b3 {[%clk 0:02:49]}  Nf8 {[%clk 0:02:36]} 16. Qc2 {[%clk 0:02:46]}  Qd7 {[%clk 0:02:33]} 17. Bf3 {[%clk 0:02:45]}  d4 {[%clk 0:02:30]} 18. Bxa8 {[%clk 0:02:26]}  Rxa8 {[%clk 0:02:27]} 19. Qe4 {[%clk 0:02:03]}  Bb7 {[%clk 0:02:22]} 20. Qd3 {[%clk 0:02:03]}  Qc6 {[%clk 0:02:16]} 21. e4 {[%clk 0:02:01]}  Rd8 {[%clk 0:02:06]} 22. Rf2 {[%clk 0:01:59]}  Bh4 {[%clk 0:02:04]} 23. g3 {[%clk 0:01:57]}  Be7 {[%clk 0:02:04]} 24. Rd1 {[%clk 0:01:41]}  Nd7 {[%clk 0:02:01]} 25. Re2 {[%clk 0:01:39]}  f5 {[%clk 0:01:53]} 26. exf6 {[%clk 0:01:37]}  Nxf6 {[%clk 0:01:50]} 27. g4 {[%clk 0:01:34]}  Rf8 {[%clk 0:01:40]} 28. Bg3 {[%clk 0:01:33]}  Ne8 {[%clk 0:01:29]} 29. Kh2 {[%clk 0:01:31]}  Bd6 {[%clk 0:01:26]} 30. e5 {[%clk 0:01:30]}  Be7 {[%clk 0:01:25]} 31. Ne4 {[%clk 0:01:25]}  g6 {[%clk 0:01:23]} 32. Rf1 {[%clk 0:01:18]}  Ng7 {[%clk 0:01:23]} 33. h4 {[%clk 0:01:04]}  Qc8 {[%clk 0:01:08]} 34. Ng5 {[%clk 0:01:01]}  Qe8 {[%clk 0:01:00]} 35. h5 {[%clk 0:00:52]}  Bxg5 {[%clk 0:00:56]} 36. fxg5 {[%clk 0:00:47]}  Rxf1 {[%clk 0:00:55]} 37. Re1 {[%clk 0:00:37]}  Rf3 {[%clk 0:00:50]} 38. Qd1 {[%clk 0:00:23]}  Qf7 {[%clk 0:00:46]} 39. h6 {[%clk 0:00:15]}  Ne8 {[%clk 0:00:38]} 40. Qe2 {[%clk 0:00:13]}  Nc7 {[%clk 0:00:32]} 41. Kg1 {[%clk 0:00:09]}  Rxg3+ {[%clk 0:00:31]} 42. Kh2 {[%clk 0:00:08]}  Rg2+ {[%clk 0:00:31]} 43. Qxg2 {[%clk 0:00:08]}  Bxg2 {[%clk 0:00:31]} 44. Kxg2 {[%clk 0:00:08]}  Qe7 {[%clk 0:00:31]} 45. Rf1 {[%clk 0:00:06]}  Qxg5 {[%clk 0:00:31]} 46. Kg3 {[%clk 0:00:06]}  Qe3+ {[%clk 0:00:30]} 47. Rf3 {[%clk 0:00:06]}  Qxe5+ {[%clk 0:00:29]} 48. Kh3 {[%clk 0:00:05]}  Qe4 {[%clk 0:00:28]} 49. Rg3 {[%clk 0:00:05]}  d3 {[%clk 0:00:28]} 50. g5 {[%clk 0:00:04]}  d2 {[%clk 0:00:28]} 51. Rg1 {[%clk 0:00:02]}  Qf3+ {[%clk 0:00:28]} 52. Kh4 {[%clk 0:00:02]}  d1=Q {[%clk 0:00:27]} 0-1


[Site "https://www.chess.com"]

[Event "Titled Tuesday Blitz March 29 Late 2022"]
[White "Pourkashiyan, Atousa"]
[Black "Taichman, Ori"]
[WhiteFideId "12502014"]
[BlackFideId "2804069"]
[WhiteElo "2247"]
[BlackElo "2227"]
[Result "0-1"]
[Round "06"]
[TimeControl "180+1"]
[Date "2022.03.30"]
[WhiteClock "0:00:02"]
[BlackClock "0:00:15"]

1. e4 {[%clk 0:02:55]}  b6 {[%clk 0:02:56]} 2. d4 {[%clk 0:02:53]}  Bb7 {[%clk 0:02:54]} 3. Nc3 {[%clk 0:02:53]}  e6 {[%clk 0:02:53]} 4. Nf3 {[%clk 0:02:52]}  Bb4 {[%clk 0:02:53]} 5. Bd3 {[%clk 0:02:52]}  Nf6 {[%clk 0:02:54]} 6. e5 {[%clk 0:02:47]}  Ne4 {[%clk 0:02:54]} 7. Bd2 {[%clk 0:02:41]}  Nxd2 {[%clk 0:02:52]} 8. Qxd2 {[%clk 0:02:41]}  Bxf3 {[%clk 0:02:52]} 9. gxf3 {[%clk 0:02:41]}  Qh4 {[%clk 0:02:52]} 10. Be4 {[%clk 0:02:37]}  Nc6 {[%clk 0:02:50]} 11. a3 {[%clk 0:02:35]}  Be7 {[%clk 0:02:49]} 12. Nb5 {[%clk 0:02:28]}  O-O-O {[%clk 0:02:42]} 13. Qc3 {[%clk 0:02:20]}  Kb7 {[%clk 0:02:24]} 14. a4 {[%clk 0:02:03]}  a6 {[%clk 0:01:42]} 15. O-O-O {[%clk 0:01:33]}  Qxf2 {[%clk 0:01:41]} 16. Kb1 {[%clk 0:01:19]}  f5 {[%clk 0:01:33]} 17. exf6 {[%clk 0:01:16]}  Bxf6 {[%clk 0:01:32]} 18. Rd2 {[%clk 0:01:09]}  Qh4 {[%clk 0:01:28]} 19. Rhd1 {[%clk 0:00:42]}  d5 {[%clk 0:01:20]} 20. Bd3 {[%clk 0:00:26]}  axb5 {[%clk 0:01:17]} 21. Bxb5 {[%clk 0:00:26]}  Na5 {[%clk 0:01:06]} 22. b4 {[%clk 0:00:25]}  Nc4 {[%clk 0:01:06]} 23. Bxc4 {[%clk 0:00:25]}  dxc4 {[%clk 0:01:07]} 24. Qxc4 {[%clk 0:00:26]}  Rd5 {[%clk 0:01:07]} 25. c3 {[%clk 0:00:25]}  Rhd8 {[%clk 0:01:04]} 26. Re2 {[%clk 0:00:26]}  Qh3 {[%clk 0:01:01]} 27. Rde1 {[%clk 0:00:24]}  R8d6 {[%clk 0:00:45]} 28. Rxe6 {[%clk 0:00:22]}  Qxf3 {[%clk 0:00:39]} 29. Rxd6 {[%clk 0:00:16]}  Rxd6 {[%clk 0:00:30]} 30. a5 {[%clk 0:00:16]}  Rc6 {[%clk 0:00:22]} 31. a6+ {[%clk 0:00:10]}  Ka7 {[%clk 0:00:21]} 32. Qg8 {[%clk 0:00:07]}  Qxc3 {[%clk 0:00:19]} 33. Re2 {[%clk 0:00:05]}  Bxd4 {[%clk 0:00:15]} 34. Ra2 {[%clk 0:00:02]}  Qc1# {[%clk 0:00:15]} 0-1


[Site "https://www.chess.com"]

[Event "Titled Tuesday Blitz March 29 Late 2022"]
[White "Quintiliano Pinto, Renato R."]
[Black "Gledura, Benjamin"]
[WhiteFideId "2117568"]
[BlackFideId "712779"]
[WhiteElo "2439"]
[BlackElo "2326"]
[Result "1/2-1/2"]
[Round "06"]
[TimeControl "180+1"]
[Date "2022.03.29"]
[WhiteClock "0:00:15"]
[BlackClock "0:00:16"]

1. d4 {[%clk 0:03:00]}  Nf6 {[%clk 0:02:59]} 2. c4 {[%clk 0:03:01]}  d6 {[%clk 0:03:00]} 3. Nf3 {[%clk 0:03:00]}  Nbd7 {[%clk 0:03:01]} 4. Nc3 {[%clk 0:02:59]}  e5 {[%clk 0:03:01]} 5. Bg5 {[%clk 0:02:56]}  Be7 {[%clk 0:02:59]} 6. e3 {[%clk 0:02:56]}  O-O {[%clk 0:02:59]} 7. Qc2 {[%clk 0:02:56]}  h6 {[%clk 0:02:59]} 8. Bh4 {[%clk 0:02:55]}  c6 {[%clk 0:02:55]} 9. Bd3 {[%clk 0:02:53]}  exd4 {[%clk 0:02:52]} 10. exd4 {[%clk 0:02:53]}  Nh5 {[%clk 0:02:51]} 11. Bg3 {[%clk 0:02:50]}  Nxg3 {[%clk 0:02:47]} 12. hxg3 {[%clk 0:02:51]}  Re8 {[%clk 0:02:37]} 13. O-O-O {[%clk 0:02:48]}  Nf8 {[%clk 0:02:37]} 14. Bf5 {[%clk 0:02:44]}  d5 {[%clk 0:02:30]} 15. c5 {[%clk 0:02:21]}  b6 {[%clk 0:02:29]} 16. cxb6 {[%clk 0:02:04]}  axb6 {[%clk 0:02:27]} 17. Ne5 {[%clk 0:02:04]}  Bd6 {[%clk 0:02:18]} 18. f4 {[%clk 0:02:01]}  Qc7 {[%clk 0:02:16]} 19. Kb1 {[%clk 0:01:58]}  b5 {[%clk 0:02:16]} 20. Rc1 {[%clk 0:01:55]}  Qa7 {[%clk 0:02:10]} 21. Bxc8 {[%clk 0:01:49]}  Rexc8 {[%clk 0:02:08]} 22. Qb3 {[%clk 0:01:39]}  Qxd4 {[%clk 0:02:07]} 23. Rhd1 {[%clk 0:01:34]}  Qf2 {[%clk 0:02:00]} 24. Ne4 {[%clk 0:01:14]}  dxe4 {[%clk 0:01:45]} 25. Qxf7+ {[%clk 0:01:12]}  Kh8 {[%clk 0:01:45]} 26. Rxd6 {[%clk 0:01:12]}  Ra7 {[%clk 0:01:35]} 27. Qf5 {[%clk 0:01:09]}  Rca8 {[%clk 0:01:31]} 28. Rcd1 {[%clk 0:00:29]}  e3 {[%clk 0:01:21]} 29. Qe4 {[%clk 0:00:13]}  e2 {[%clk 0:01:16]} 30. Rc1 {[%clk 0:00:13]}  Rxa2 {[%clk 0:01:04]} 31. Nf7+ {[%clk 0:00:13]}  Kg8 {[%clk 0:01:03]} 32. Nxh6+ {[%clk 0:00:13]}  gxh6 {[%clk 0:01:04]} 33. Rg6+ {[%clk 0:00:14]}  Nxg6 {[%clk 0:00:16]} 34. Qxg6+ {[%clk 0:00:15]}  Kf8 {[%clk 0:00:16]} 35. Qf6+ {[%clk 0:00:15]}  Kg8 {[%clk 0:00:15]} 36. Qg6+ {[%clk 0:00:15]}  Kf8 {[%clk 0:00:16]} 37. Qf6+ {[%clk 0:00:15]}  Kg8 {[%clk 0:00:16]} 38. Qg6+ {[%clk 0:00:15]} 1/2-1/2


[Site "https://www.chess.com"]

[Event "Titled Tuesday Blitz March 29 Late 2022"]
[White "Rasulov, Vugar"]
[Black "Fedoseev, Vladimir"]
[WhiteFideId "13402390"]
[BlackFideId "24130737"]
[WhiteElo "2560"]
[BlackElo "2726"]
[Result "1-0"]
[Round "06"]
[TimeControl "180+1"]
[Date "2022.03.29"]
[WhiteClock "0:00:40"]
[BlackClock "0:00:02"]

1. d4 {[%clk 0:03:00]}  Nf6 {[%clk 0:02:54]} 2. c4 {[%clk 0:03:00]}  g6 {[%clk 0:02:55]} 3. Nc3 {[%clk 0:02:59]}  Bg7 {[%clk 0:02:55]} 4. e4 {[%clk 0:02:58]}  d6 {[%clk 0:02:56]} 5. Nge2 {[%clk 0:02:58]}  O-O {[%clk 0:02:56]} 6. Ng3 {[%clk 0:02:58]}  c5 {[%clk 0:02:55]} 7. d5 {[%clk 0:02:58]}  h5 {[%clk 0:02:55]} 8. Be2 {[%clk 0:02:52]}  e6 {[%clk 0:02:51]} 9. Bg5 {[%clk 0:02:51]}  Qb6 {[%clk 0:02:49]} 10. Qd2 {[%clk 0:02:50]}  Nh7 {[%clk 0:02:47]} 11. Be3 {[%clk 0:02:48]}  h4 {[%clk 0:02:41]} 12. Nf1 {[%clk 0:02:47]}  f5 {[%clk 0:02:37]} 13. exf5 {[%clk 0:02:31]}  exf5 {[%clk 0:02:36]} 14. O-O-O {[%clk 0:02:30]}  Nd7 {[%clk 0:02:10]} 15. Bh6 {[%clk 0:02:29]}  Ndf6 {[%clk 0:01:55]} 16. Bxg7 {[%clk 0:02:28]}  Kxg7 {[%clk 0:01:56]} 17. g3 {[%clk 0:02:24]}  h3 {[%clk 0:01:52]} 18. Ne3 {[%clk 0:02:17]}  Bd7 {[%clk 0:01:52]} 19. Bd3 {[%clk 0:02:17]}  Rae8 {[%clk 0:01:50]} 20. Rhe1 {[%clk 0:02:17]}  Qd8 {[%clk 0:01:46]} 21. f4 {[%clk 0:02:15]}  a6 {[%clk 0:01:45]} 22. Kb1 {[%clk 0:02:08]}  Re7 {[%clk 0:01:36]} 23. Nc2 {[%clk 0:01:47]}  Rfe8 {[%clk 0:01:32]} 24. Bf1 {[%clk 0:01:45]}  Ne4 {[%clk 0:01:28]} 25. Nxe4 {[%clk 0:01:45]}  fxe4 {[%clk 0:01:29]} 26. Qc3+ {[%clk 0:01:43]}  Nf6 {[%clk 0:01:28]} 27. Ne3 {[%clk 0:01:43]}  b5 {[%clk 0:01:29]} 28. b3 {[%clk 0:01:41]}  Kf7 {[%clk 0:01:26]} 29. Rd2 {[%clk 0:01:35]}  bxc4 {[%clk 0:01:18]} 30. Bxc4 {[%clk 0:01:31]}  a5 {[%clk 0:01:12]} 31. Rf1 {[%clk 0:01:28]}  Bf5 {[%clk 0:01:08]} 32. Bb5 {[%clk 0:01:16]}  Rh8 {[%clk 0:01:06]} 33. a4 {[%clk 0:01:16]}  Ng4 {[%clk 0:01:03]} 34. Ka2 {[%clk 0:01:12]}  Nxe3 {[%clk 0:00:52]} 35. Qxe3 {[%clk 0:01:13]}  Rb7 {[%clk 0:00:46]} 36. Qc3 {[%clk 0:01:05]}  Rf8 {[%clk 0:00:42]} 37. Re1 {[%clk 0:01:04]}  Kg8 {[%clk 0:00:41]} 38. Rde2 {[%clk 0:01:03]}  Re7 {[%clk 0:00:37]} 39. Re3 {[%clk 0:01:01]}  Qa8 {[%clk 0:00:33]} 40. Ka3 {[%clk 0:00:53]}  Rff7 {[%clk 0:00:24]} 41. g4 {[%clk 0:00:51]}  Bxg4 {[%clk 0:00:19]} 42. Rxe4 {[%clk 0:00:51]}  Rxe4 {[%clk 0:00:15]} 43. Rxe4 {[%clk 0:00:52]}  Bd7 {[%clk 0:00:10]} 44. Bxd7 {[%clk 0:00:52]}  Rxd7 {[%clk 0:00:10]} 45. Re6 {[%clk 0:00:50]}  Rg7 {[%clk 0:00:02]} 46. Qe3 {[%clk 0:00:44]}  Qxd5 {[%clk 0:00:02]} 47. Re8+ {[%clk 0:00:40]}  Kh7 {[%clk 0:00:02]} 48. Qxh3+ {[%clk 0:00:39]}  Qh5 {[%clk 0:00:02]} 49. Qc8 {[%clk 0:00:40]} 1-0


[Site "https://www.chess.com"]

[Event "Titled Tuesday Blitz March 29 Late 2022"]
[White "Romanchuk, Viktor"]
[Black "Gatterer, Florian"]
[WhiteFideId "14109271"]
[BlackFideId "811688"]
[WhiteElo "2242"]
[BlackElo "2218"]
[Result "1-0"]
[Round "06"]
[TimeControl "180+1"]
[Date "2022.03.30"]
[WhiteClock "0:00:32"]
[BlackClock "0:00:15"]

1. d4 {[%clk 0:03:00]}  Nf6 {[%clk 0:02:57]} 2. c4 {[%clk 0:03:00]}  g6 {[%clk 0:02:57]} 3. Nc3 {[%clk 0:03:00]}  Bg7 {[%clk 0:02:58]} 4. Nf3 {[%clk 0:03:00]}  d6 {[%clk 0:02:58]} 5. g3 {[%clk 0:02:59]}  O-O {[%clk 0:02:57]} 6. Bg2 {[%clk 0:02:59]}  c5 {[%clk 0:02:57]} 7. O-O {[%clk 0:02:59]}  Nc6 {[%clk 0:02:56]} 8. dxc5 {[%clk 0:02:59]}  dxc5 {[%clk 0:02:55]} 9. Be3 {[%clk 0:02:59]}  Nd7 {[%clk 0:02:48]} 10. Qd2 {[%clk 0:02:37]}  Nde5 {[%clk 0:02:26]} 11. Qxd8 {[%clk 0:02:08]}  Rxd8 {[%clk 0:02:21]} 12. Nxe5 {[%clk 0:02:07]}  Nxe5 {[%clk 0:02:20]} 13. Bxc5 {[%clk 0:02:06]}  Nxc4 {[%clk 0:02:19]} 14. Bxe7 {[%clk 0:01:57]}  Re8 {[%clk 0:02:10]} 15. Bc5 {[%clk 0:01:53]}  Nxb2 {[%clk 0:02:02]} 16. Rac1 {[%clk 0:01:52]}  Bxc3 {[%clk 0:01:56]} 17. Rxc3 {[%clk 0:01:49]}  Na4 {[%clk 0:01:56]} 18. Re3 {[%clk 0:01:42]}  Bg4 {[%clk 0:01:34]} 19. Bxb7 {[%clk 0:01:32]}  Rxe3 {[%clk 0:01:00]} 20. Bxe3 {[%clk 0:01:24]}  Rb8 {[%clk 0:01:00]} 21. Ba6 {[%clk 0:01:11]}  Nc3 {[%clk 0:00:57]} 22. f3 {[%clk 0:01:10]}  Be6 {[%clk 0:00:53]} 23. a3 {[%clk 0:01:01]}  Nd5 {[%clk 0:00:43]} 24. Bd4 {[%clk 0:00:56]}  Rb3 {[%clk 0:00:39]} 25. Ra1 {[%clk 0:00:52]}  Nb6 {[%clk 0:00:23]} 26. Kf2 {[%clk 0:00:43]}  h5 {[%clk 0:00:23]} 27. a4 {[%clk 0:00:39]}  Bc8 {[%clk 0:00:18]} 28. Bd3 {[%clk 0:00:33]}  Ba6 {[%clk 0:00:15]} 29. Bxa6 {[%clk 0:00:32]} 1-0


[Site "https://www.chess.com"]

[Event "Titled Tuesday Blitz March 29 Late 2022"]
[White "Romero Ruscalleda, Josep"]
[Black "Iskusnyh, Sergei"]
[WhiteFideId "2231859"]
[BlackFideId "4120027"]
[WhiteElo "2332"]
[BlackElo "2492"]
[Result "0-1"]
[Round "06"]
[TimeControl "180+1"]
[Date "2022.03.30"]
[WhiteClock "0:00:19"]
[BlackClock "0:00:17"]

1. e4 {[%clk 0:03:00]}  e6 {[%clk 0:02:58]} 2. d4 {[%clk 0:03:00]}  d5 {[%clk 0:02:58]} 3. e5 {[%clk 0:03:00]}  c5 {[%clk 0:02:58]} 4. c3 {[%clk 0:03:01]}  Nc6 {[%clk 0:02:58]} 5. Be3 {[%clk 0:03:01]}  Qb6 {[%clk 0:02:54]} 6. Qd2 {[%clk 0:03:01]}  Nh6 {[%clk 0:02:47]} 7. Nf3 {[%clk 0:03:00]}  Nf5 {[%clk 0:02:46]} 8. dxc5 {[%clk 0:03:00]}  Bxc5 {[%clk 0:02:43]} 9. Bxc5 {[%clk 0:03:00]}  Qxc5 {[%clk 0:02:43]} 10. Bd3 {[%clk 0:03:01]}  O-O {[%clk 0:02:36]} 11. O-O {[%clk 0:03:00]}  Nfe7 {[%clk 0:02:22]} 12. Re1 {[%clk 0:02:50]}  Bd7 {[%clk 0:02:17]} 13. Qe2 {[%clk 0:02:46]}  Qb6 {[%clk 0:02:15]} 14. Nbd2 {[%clk 0:02:34]}  Ng6 {[%clk 0:02:14]} 15. Qe3 {[%clk 0:02:12]}  Qxe3 {[%clk 0:01:25]} 16. Rxe3 {[%clk 0:02:13]}  Rfc8 {[%clk 0:01:26]} 17. g3 {[%clk 0:02:12]}  Rab8 {[%clk 0:01:23]} 18. Nb3 {[%clk 0:02:11]}  b5 {[%clk 0:01:22]} 19. Bxg6 {[%clk 0:01:58]}  hxg6 {[%clk 0:01:21]} 20. Nc5 {[%clk 0:01:58]}  Be8 {[%clk 0:01:18]} 21. b4 {[%clk 0:01:58]}  a5 {[%clk 0:01:17]} 22. a3 {[%clk 0:01:58]}  Ra8 {[%clk 0:01:17]} 23. Rb1 {[%clk 0:01:51]}  axb4 {[%clk 0:01:14]} 24. cxb4 {[%clk 0:01:41]}  Ra7 {[%clk 0:01:03]} 25. Rbb3 {[%clk 0:01:30]}  Rca8 {[%clk 0:00:57]} 26. Kf1 {[%clk 0:01:15]}  Kf8 {[%clk 0:00:56]} 27. Ke2 {[%clk 0:01:15]}  Ke7 {[%clk 0:00:57]} 28. Kd2 {[%clk 0:01:15]}  d4 {[%clk 0:00:47]} 29. Red3 {[%clk 0:01:15]}  f6 {[%clk 0:00:47]} 30. exf6+ {[%clk 0:01:08]}  gxf6 {[%clk 0:00:47]} 31. Nxd4 {[%clk 0:01:07]}  Nxd4 {[%clk 0:00:46]} 32. Rxd4 {[%clk 0:01:07]}  Rxa3 {[%clk 0:00:46]} 33. Kc2 {[%clk 0:00:58]}  e5 {[%clk 0:00:43]} 34. Rdd3 {[%clk 0:00:52]}  Ra2+ {[%clk 0:00:41]} 35. Rb2 {[%clk 0:00:52]}  R8a7 {[%clk 0:00:40]} 36. Nb3 {[%clk 0:00:44]}  g5 {[%clk 0:00:31]} 37. Na5 {[%clk 0:00:43]}  Ra4 {[%clk 0:00:30]} 38. Kd2 {[%clk 0:00:36]}  Rc7 {[%clk 0:00:27]} 39. Rc3 {[%clk 0:00:34]}  Rxc3 {[%clk 0:00:23]} 40. Kxc3 {[%clk 0:00:34]}  Bf7 {[%clk 0:00:22]} 41. Kd3 {[%clk 0:00:25]}  f5 {[%clk 0:00:21]} 42. Ke3 {[%clk 0:00:25]}  Bd5 {[%clk 0:00:20]} 43. f3 {[%clk 0:00:24]}  f4+ {[%clk 0:00:20]} 44. gxf4 {[%clk 0:00:23]}  gxf4+ {[%clk 0:00:19]} 45. Kf2 {[%clk 0:00:22]}  Ra3 {[%clk 0:00:20]} 46. Re2 {[%clk 0:00:21]}  Rxf3+ {[%clk 0:00:20]} 47. Ke1 {[%clk 0:00:22]}  Kf6 {[%clk 0:00:19]} 48. Rd2 {[%clk 0:00:20]}  Re3+ {[%clk 0:00:19]} 49. Kd1 {[%clk 0:00:20]}  Bf3+ {[%clk 0:00:19]} 50. Kc1 {[%clk 0:00:20]}  Be4 {[%clk 0:00:19]} 51. Rd6+ {[%clk 0:00:20]}  Kg5 {[%clk 0:00:17]} 52. Rb6 {[%clk 0:00:20]}  f3 {[%clk 0:00:17]} 53. Kd2 {[%clk 0:00:19]}  Re2+ {[%clk 0:00:17]} 54. Kd1 {[%clk 0:00:19]}  Bc2+ {[%clk 0:00:17]} 55. Kc1 {[%clk 0:00:19]}  f2 {[%clk 0:00:17]} 0-1


[Site "https://www.chess.com"]